bitfinex-derivatives/quotes_BTCF0:USTF0_20241116
["timestamp","ask_amount","ask_price","bid_price","bid_amount"]
[1731782116379,0.054742,91295.0,91294.0,0.00547783]
[1731782116575,0.496062,91295.0,91294.0,0.26948046]
[1731782117077,0.496062,91295.0,91294.0,0.00890162]
[1731782118671,0.3608,91295.0,91294.0,0.00890162]
[1731782118986,0.44132,91295.0,91294.0,0.00890162]
[1731782119280,0.44132,91295.0,91294.0,0.04394146]
[1731782119580,0.08052,91295.0,91294.0,0.23939271]
[1731782119784,0.08052,91295.0,91294.0,0.0439415]
[1731782120174,0.13131245,91295.0,91294.0,0.0986845]
[1731782120571,0.21183245,91298.0,91294.0,0.0439415]
[1731782120787,0.13897245,91299.0,91296.0,0.19533574]
[1731782120989,0.00766,91299.0,91298.0,0.30450995]
[1731782121179,0.14198868,91301.0,91298.0,0.32391355]
[1731782121385,0.14198868,91301.0,91300.0,0.054739]
[1731782121585,0.14198868,91301.0,91300.0,0.25892983]
[1731782121884,0.14198868,91301.0,91300.0,0.0636405]
[1731782122780,0.14198868,91301.0,91300.0,0.054739]
[1731782123081,0.06146868,91301.0,91300.0,0.32625829]
[1731782123281,0.06146868,91301.0,91300.0,0.06567945]
[1731782123870,0.06146868,91301.0,91300.0,0.42647945]
[1731782124075,0.00259197,91301.0,91300.0,0.44564843]
[1731782124482,0.00259197,91301.0,91300.0,0.08484843]
[1731782124991,0.00259197,91301.0,91300.0,0.41344843]
[1731782125178,0.16385122,91319.0,91300.0,0.41344843]
[1731782125179,0.13131245,91326.0,91301.0,0.3286]
[1731782125381,0.13131245,91326.0,91300.0,1.25220978]
[1731782125382,0.135241,91330.0,91329.0,0.054722]
[1731782125679,0.135241,91330.0,91329.0,0.06362245]
[1731782125876,0.135241,91330.0,91329.0,0.11805566]
[1731782126889,0.05375637,91330.0,91329.0,0.73357476]
[1731782127184,0.00220265,91349.0,91347.0,0.054711]
[1731782127375,0.00164264,91349.0,91348.0,0.81338859]
[1731782127579,0.00164264,91349.0,91348.0,0.82707725]
[1731782127888,0.00164264,91349.0,91348.0,0.82160129]
[1731782128078,0.00164264,91349.0,91348.0,0.46080129]
[1731782128389,0.00164264,91349.0,91348.0,0.65488161]
[1731782128689,0.00164264,91349.0,91348.0,0.37791315]
[1731782128881,0.00164264,91349.0,91348.0,0.65486481]
[1731782129080,0.00164264,91349.0,91348.0,0.46080129]
[1731782129474,0.00164264,91349.0,91348.0,0.45053386]
[1731782129678,0.00164264,91349.0,91348.0,0.44710914]
[1731782129879,0.00164264,91349.0,91348.0,0.45053014]
[1731782132986,0.00164264,91349.0,91348.0,0.367642]
[1731782133191,0.00164264,91349.0,91348.0,0.36764228]
[1731782134185,0.00164264,91349.0,91348.0,0.42235328]
[1731782134694,0.00164264,91349.0,91348.0,0.50524142]
[1731782134893,0.00875,91350.0,91348.0,0.83364142]
[1731782135090,0.00875,91350.0,91349.0,0.36764228]
[1731782135979,0.00875,91350.0,91349.0,0.69604228]
[1731782136179,0.00011676,91351.0,91350.0,0.054709]
[1731782136482,0.00011676,91351.0,91350.0,0.38652962]
[1731782137080,0.0301,91371.0,91364.0,0.054701]
[1731782137283,0.054692,91380.0,91364.0,0.80448814]
[1731782137482,0.054692,91380.0,91372.0,0.44368814]
[1731782137808,0.05515281,91379.0,91372.0,0.44710838]
[1731782137996,0.00875,91374.0,91372.0,0.44710838]
[1731782138198,0.00175992,91373.0,91372.0,0.44710838]
[1731782139782,0.00175992,91373.0,91372.0,0.36422024]
[1731782140390,0.00175992,91373.0,91372.0,0.36422009]
[1731782140597,0.00175992,91373.0,91372.0,0.36764017]
[1731782140796,0.0005,91389.0,91387.0,0.054687]
[1731782140984,0.0005,91389.0,91388.0,0.44368814]
[1731782141297,0.0005,91389.0,91388.0,0.45257913]
[1731782141685,0.00059459,91389.0,91388.0,0.45257913]
[1731782141885,0.00059459,91389.0,91388.0,0.44368814]
[1731782142091,0.00059459,91389.0,91388.0,0.45398312]
[1731782142300,0.00059459,91389.0,91388.0,0.52310273]
[1731782142488,9.459e-05,91389.0,91388.0,0.52169876]
[1731782142683,0.00875,91390.0,91388.0,0.51968278]
[1731782142898,0.00875,91390.0,91388.0,0.50938814]
[1731782143093,0.00875,91390.0,91388.0,0.56407414]
[1731782143602,0.00012496,91389.0,91388.0,0.56407414]
[1731782143785,0.00012496,91389.0,91388.0,0.57296536]
[1731782144582,0.00012496,91389.0,91388.0,0.45747722]
[1731782144786,0.00012496,91389.0,91388.0,0.42437722]
[1731782145497,0.00012496,91389.0,91388.0,0.43121701]
[1731782145993,0.00012496,91389.0,91388.0,0.42437722]
[1731782146200,0.00012496,91389.0,91388.0,0.43121685]
[1731782146699,0.00012496,91389.0,91388.0,0.36969122]
[1731782146901,0.00012496,91389.0,91382.0,0.00140363]
[1731782147094,0.00012496,91389.0,91383.0,0.01573169]
[1731782147400,0.00012496,91389.0,91384.0,0.01573169]
[1731782147586,0.00012496,91389.0,91385.0,0.01573169]
[1731782147786,0.00012496,91389.0,91386.0,0.01573169]
[1731782147992,0.00012496,91389.0,91387.0,0.01573169]
[1731782148202,0.00012496,91389.0,91388.0,0.00889174]
[1731782148496,0.16804024,91389.0,91388.0,0.00889174]
[1731782150099,0.08760024,91389.0,91388.0,0.00889174]
[1731782150306,0.16804024,91389.0,91388.0,0.00889174]
[1731782150493,0.16804024,91389.0,91388.0,0.01573215]
[1731782150695,0.054687,91388.0,91382.0,0.08288814]
[1731782150904,0.054687,91388.0,91383.0,0.01573293]
[1731782151097,0.054687,91388.0,91384.0,0.01573293]
[1731782151398,0.16804024,91389.0,91380.0,0.3608]
[1731782151399,0.054688,91386.0,91385.0,0.01573293]
[1731782151700,0.054688,91386.0,91385.0,0.01573297]
[1731782151902,0.054688,91386.0,91385.0,0.01696089]
[1731782152097,0.054688,91386.0,91380.0,0.3608]
[1731782152300,0.054688,91386.0,91381.0,0.09862111]
[1731782152491,0.054688,91386.0,91382.0,0.01573297]
[1731782152692,0.054688,91386.0,91383.0,0.01573297]
[1731782152997,0.054688,91386.0,91384.0,0.01573297]
[1731782153185,0.054688,91386.0,91385.0,0.01573297]
[1731782154290,0.03006319,91386.0,91385.0,0.01573297]
[1731782154801,0.03006319,91386.0,91385.0,0.00889255]
[1731782156895,0.35834319,91386.0,91385.0,0.00889255]
[1731782157198,0.03006319,91386.0,91385.0,0.00889255]
[1731782160793,0.054687,91387.0,91385.0,0.00889284]
[1731782161105,0.054687,91387.0,91386.0,0.00889284]
[1731782161106,0.21853822,91387.0,91386.0,0.00889284]
[1731782161403,0.29897822,91387.0,91386.0,0.00889284]
[1731782162002,0.05560024,91389.0,91386.0,0.00889284]
[1731782162190,0.05560024,91389.0,91387.0,0.06357984]
[1731782162393,0.05560024,91389.0,91388.0,0.00889284]
[1731782163799,0.05560024,91389.0,91388.0,0.26765547]
[1731782164005,0.05560024,91389.0,91388.0,0.00889284]
[1731782164193,0.05560024,91389.0,91388.0,0.26765547]
[1731782164590,0.05560024,91389.0,91388.0,0.2683434]
[1731782164802,0.05560024,91389.0,91387.0,0.31413756]
[1731782164995,0.05560024,91389.0,91388.0,0.00889171]
[1731782165198,0.05560024,91389.0,91388.0,0.26834227]
[1731782165512,0.05560024,91389.0,91388.0,0.00889171]
[1731782166201,1e-08,91390.0,91388.0,0.00889171]
[1731782166409,1e-08,91390.0,91389.0,0.06357771]
[1731782166706,1e-08,91390.0,91389.0,0.43027155]
[1731782166903,1e-08,91390.0,91389.0,0.42001262]
[1731782167116,1e-08,91390.0,91389.0,0.74442012]
[1731782167398,1e-08,91390.0,91389.0,0.43027169]
[1731782167993,9.508e-05,91393.0,91392.0,0.054684]
[1731782168204,9.508e-05,91393.0,91392.0,0.15330319]
[1731782169004,9.508e-05,91393.0,91392.0,0.14646385]
[1731782169399,0.16385122,91397.0,91392.0,0.09177985]
[1731782169593,0.006,91396.0,91393.0,0.00889171]
[1731782169794,0.006,91396.0,91395.0,0.054682]
[1731782169998,0.006,91396.0,91395.0,0.06357371]
[1731782170391,0.006,91396.0,91395.0,0.06366627]
[1731782170802,0.006,91396.0,91395.0,0.05819404]
[1731782171003,0.006,91396.0,91395.0,0.06366521]
[1731782172612,0.13702065,91396.0,91395.0,0.06366521]
[1731782172992,0.13702173,91396.0,91395.0,0.06366521]
[1731782173398,0.006,91396.0,91395.0,0.14655335]
[1731782173594,0.13700688,91396.0,91395.0,0.14655335]
[1731782173790,8.121e-05,91399.0,91397.0,0.054681]
[1731782174096,0.16385122,91414.0,91398.0,0.90286817]
[1731782174301,0.05630861,91421.0,91413.0,0.3608]
[1731782174302,0.00164161,91421.0,91413.0,0.3608]
[1731782174704,0.05702158,91421.0,91414.0,0.01572622]
[1731782175002,0.05630861,91421.0,91415.0,0.02598269]
[1731782175198,0.05630861,91421.0,91415.0,0.054671]
[1731782175199,8.158e-05,91416.0,91415.0,0.054671]
[1731782175399,8.158e-05,91416.0,91415.0,0.18410057]
[1731782175594,8.158e-05,91416.0,91415.0,0.18268537]
[1731782175797,8.158e-05,91416.0,91415.0,0.18410077]
[1731782176002,8.158e-05,91416.0,91415.0,0.1532849]
[1731782176309,8.158e-05,91416.0,91415.0,0.17384472]
[1731782176798,8.158e-05,91416.0,91415.0,0.08954125]
[1731782176996,8.158e-05,91416.0,91415.0,0.01714025]
[1731782177200,8.158e-05,91416.0,91415.0,0.01676666]
[1731782177503,8.158e-05,91416.0,91413.0,0.24917245]
[1731782177704,8.158e-05,91416.0,91414.0,0.21126827]
[1731782177907,8.158e-05,91416.0,91415.0,0.01572703]
[1731782181302,8.158e-05,91416.0,91415.0,0.01572699]
[1731782181502,8.158e-05,91416.0,91415.0,0.37652699]
[1731782181812,8.158e-05,91416.0,91415.0,0.01572738]
[1731782183410,8.158e-05,91416.0,91415.0,0.01676764]
[1731782184016,8.158e-05,91416.0,91415.0,0.01572781]
[1731782184201,8.158e-05,91416.0,91415.0,0.01676819]
[1731782184514,8.158e-05,91416.0,91415.0,0.01572781]
[1731782188203,8.158e-05,91416.0,91415.0,0.00888963]
[1731782188712,8.158e-05,91416.0,91415.0,0.01572784]
[1731782189111,8.158e-05,91416.0,91415.0,0.00888963]
[1731782189711,8.158e-05,91416.0,91415.0,0.01572738]
[1731782190116,8.158e-05,91416.0,91415.0,0.00888963]
[1731782191910,8.158e-05,91416.0,91415.0,0.0054704]
[1731782192108,8.158e-05,91416.0,91415.0,0.00888946]
[1731782192505,8.158e-05,91416.0,91415.0,0.07039852]
[1731782193308,8.158e-05,91416.0,91415.0,0.43119852]
[1731782194119,8.158e-05,91416.0,91415.0,0.07039852]
[1731782194718,8.158e-05,91416.0,91415.0,0.43119852]
[1731782194908,8.158e-05,91416.0,91415.0,0.43119836]
[1731782196006,8.158e-05,91416.0,91415.0,0.26480822]
[1731782196215,8.158e-05,91416.0,91415.0,0.62560822]
[1731782196414,8.158e-05,91416.0,91415.0,0.43119836]
[1731782196621,8.158e-05,91416.0,91415.0,0.45859578]
[1731782196815,0.00164161,91421.0,91420.0,0.054668]
[1731782197010,0.00164161,91421.0,91420.0,0.07039536]
[1731782197805,0.00175123,91421.0,91420.0,0.07039536]
[1731782198013,0.00175123,91421.0,91420.0,0.2648111]
[1731782198211,0.00175123,91421.0,91420.0,0.07039536]
[1731782198419,0.00175123,91421.0,91420.0,0.054668]
[1731782198620,0.00175123,91421.0,91420.0,0.07039353]
[1731782199019,0.00175123,91421.0,91420.0,0.26485127]
[1731782199216,0.05546308,91422.0,91420.0,0.09637452]
[1731782199419,0.05546308,91422.0,91416.0,0.29277299]
[1731782199420,0.054661,91431.0,91421.0,0.04312361]
[1731782199614,0.054661,91431.0,91425.0,0.62037299]
[1731782199919,0.054661,91431.0,91426.0,0.01572553]
[1731782200114,0.0315,91432.0,91427.0,0.01572553]
[1731782200322,0.05480049,91431.0,91430.0,0.19450784]
[1731782200523,0.05480049,91431.0,91430.0,0.01572553]
[1731782200723,0.00013949,91431.0,91430.0,0.01572553]
[1731782201829,0.00013949,91431.0,91430.0,0.27529852]
[1731782202127,0.00013949,91431.0,91430.0,0.016768]
[1731782202319,0.00013949,91431.0,91430.0,0.27529763]
[1731782202518,0.00013949,91431.0,91430.0,0.01676803]
[1731782203221,0.00013949,91431.0,91430.0,0.27529763]
[1731782203627,0.00013949,91431.0,91430.0,0.27634108]
[1731782203829,0.00013949,91431.0,91430.0,0.01676809]
[1731782204031,0.00013949,91431.0,91430.0,0.01572464]
[1731782206430,0.00013949,91431.0,91429.0,0.054662]
[1731782206637,0.00013949,91431.0,91430.0,0.0157241]
[1731782207618,0.00013949,91431.0,91430.0,0.27500167]
[1731782207826,0.00013949,91431.0,91430.0,0.0157241]
[1731782209028,0.00018722,91431.0,91430.0,0.0157241]
[1731782210635,0.00018722,91431.0,91430.0,0.27490673]
[1731782210828,0.00018722,91431.0,91430.0,0.0157241]
[1731782211029,0.054653,91444.0,91430.0,0.04170265]
[1731782211344,0.08048,91445.0,91433.0,0.46973064]
[1731782211345,0.054654,91442.0,91433.0,0.46973064]
[1731782211637,0.05457834,91435.0,91433.0,0.74455101]
[1731782212336,0.05457834,91435.0,91433.0,0.48545474]
[1731782212731,9.889e-05,91438.0,91433.0,0.74455017]
[1731782213240,0.053747,91436.0,91433.0,0.62617514]
[1731782213536,0.053747,91436.0,91433.0,0.37652326]
[1731782214038,9.889e-05,91438.0,91433.0,0.37652326]
[1731782214624,0.05331787,91437.0,91433.0,0.37652326]
[1731782214932,0.05331787,91437.0,91433.0,0.40250093]
[1731782215239,9.889e-05,91438.0,91436.0,0.10892864]
[1731782215440,9.889e-05,91438.0,91437.0,0.01572326]
[1731782215837,9.889e-05,91438.0,91437.0,0.01572335]
[1731782219144,0.0318,91441.0,91437.0,0.01572335]
[1731782219447,0.0318,91441.0,91440.0,0.054656]
[1731782219649,0.0318,91441.0,91440.0,0.07037935]
[1731782220655,0.0318,91441.0,91440.0,0.0703796]
[1731782221459,0.0318,91441.0,91440.0,0.054656]
[1731782221657,0.0318,91441.0,91440.0,0.07037968]
[1731782222662,0.0318,91441.0,91440.0,0.26573449]
[1731782223163,0.0318,91441.0,91440.0,0.26469231]
[1731782223365,0.0318,91441.0,91440.0,0.07142195]
[1731782223861,0.0318,91441.0,91440.0,0.01572368]
[1731782228062,0.0318,91441.0,91440.0,0.07037968]
[1731782229866,0.0318,91441.0,91440.0,0.01572368]
[1731782230059,0.08607064,91441.0,91440.0,0.01572368]
[1731782230364,0.08496677,91441.0,91440.0,0.01572368]
[1731782232360,0.08496677,91441.0,91434.0,0.054659]
[1731782232361,0.08496677,91441.0,91438.0,0.0010428]
[1731782232665,0.05316677,91440.0,91438.0,0.0010428]
[1731782233266,0.05316677,91440.0,91437.0,0.0010428]
[1731782233466,0.19706465,91439.0,91434.0,0.054659]
[1731782233776,0.05316677,91438.0,91434.0,0.054659]
[1731782234070,0.16392475,91435.0,91434.0,0.054659]
[1731782237875,0.13116359,91439.0,91434.0,0.054659]
[1731782238075,0.13116359,91439.0,91438.0,0.25956316]
[1731782238465,0.13116359,91440.0,91437.0,0.25956316]
[1731782239375,0.13116359,91439.0,91437.0,0.25956316]
[1731782240376,0.13116359,91440.0,91437.0,0.25956316]
[1731782240879,0.0318,91441.0,91436.0,0.3138338]
[1731782240880,0.16296359,91441.0,91436.0,0.3138338]
[1731782241073,0.0318,91441.0,91438.0,0.054657]
[1731782241267,0.0318,91441.0,91438.0,0.31422016]
[1731782241468,0.0318,91441.0,91439.0,0.25956316]
[1731782241669,0.0318,91441.0,91440.0,0.054656]
[1731782242075,0.00014193,91444.0,91443.0,0.054654]
[1731782242471,0.00014193,91444.0,91443.0,0.415454]
[1731782242673,0.00014193,91444.0,91443.0,0.46972464]
[1731782242879,0.00014193,91444.0,91443.0,0.48202865]
[1731782243175,0.21156359,91451.0,91446.0,0.054652]
[1731782243176,0.0804,91451.0,91446.0,0.054652]
[1731782243367,0.0804,91451.0,91448.0,0.2594683]
[1731782243566,0.13116359,91450.0,91449.0,0.01230401]
[1731782244173,0.13130284,91450.0,91449.0,0.01230401]
[1731782244372,0.13130284,91450.0,91449.0,0.01572196]
[1731782244573,0.18595284,91450.0,91449.0,0.01572261]
[1731782244885,0.2518539,91450.0,91449.0,0.01572261]
[1731782245178,0.10795051,91450.0,91449.0,0.01572261]
[1731782246484,0.16222115,91450.0,91449.0,0.01572261]
[1731782246680,0.10905989,91450.0,91449.0,0.01572261]
[1731782246883,0.24634674,91450.0,91449.0,0.01572261]
[1731782248393,0.2466838,91450.0,91449.0,0.01572261]
[1731782248581,0.30095444,91450.0,91449.0,0.01572261]
[1731782248779,0.2466838,91450.0,91449.0,0.01572261]
[1731782251206,0.2466838,91450.0,91441.0,0.05569841]
[1731782251207,0.2466838,91450.0,91441.0,0.054655]
[1731782251374,0.2466838,91450.0,91442.0,0.00546896]
[1731782251375,0.19665035,91445.0,91442.0,0.00546896]
[1731782251580,0.05316261,91444.0,91443.0,0.01572327]
[1731782251886,0.19665035,91446.0,91442.0,0.05427064]
[1731782252193,0.19665035,91446.0,91443.0,0.01572317]
[1731782252375,0.19665035,91446.0,91444.0,0.01572317]
[1731782252688,0.415452,91447.0,91445.0,0.01572317]
[1731782252885,0.054656,91440.0,91439.0,0.2594683]
[1731782253094,0.16319728,91440.0,91439.0,0.27519186]
[1731782253392,0.10892664,91440.0,91439.0,0.21038177]
[1731782253683,0.10892664,91440.0,91439.0,0.00888723]
[1731782254290,0.054663,91428.0,91427.0,0.0051]
[1731782254493,0.55009364,91428.0,91427.0,0.00683772]
[1731782255185,0.49543064,91428.0,91423.0,0.19465821]
[1731782255394,0.49543064,91428.0,91424.0,0.00683785]
[1731782255585,0.054664,91426.0,91425.0,0.00683785]
[1731782256676,0.10893464,91426.0,91425.0,0.00683785]
[1731782256894,0.10893464,91426.0,91419.0,0.19465821]
[1731782256895,0.41642998,91428.0,91427.0,0.054663]
[1731782257085,0.41642998,91428.0,91427.0,0.10893364]
[1731782257086,0.3608,91428.0,91427.0,0.10893364]
[1731782257278,0.3608,91428.0,91427.0,0.11577151]
[1731782257792,0.3608,91428.0,91427.0,0.11577111]
[1731782258488,0.3608,91428.0,91417.0,0.6576683]
[1731782258489,0.74319064,91428.0,91424.0,0.19465821]
[1731782258695,0.05427064,91426.0,91413.0,0.19465821]
[1731782258986,0.054669,91419.0,91417.0,0.05427064]
[1731782259187,0.08036,91418.0,91417.0,0.05427064]
[1731782259980,0.08036,91418.0,91411.0,0.00164084]
[1731782259981,0.44116,91418.0,91411.0,0.00164084]
[1731782260193,0.054672,91413.0,91411.0,0.00164084]
[1731782260408,0.1856112,91413.0,91411.0,0.00164084]
[1731782260788,0.054672,91413.0,91411.0,0.00164084]
[1731782261692,0.0324,91412.0,91411.0,0.00164084]
[1731782262399,0.16319718,91412.0,91411.0,0.00164084]
[1731782263292,0.0324,91412.0,91411.0,0.00164084]
[1731782264186,0.0324,91412.0,91411.0,0.00711213]
[1731782264703,0.1128,91412.0,91411.0,0.00711213]
[1731782265388,0.0324,91412.0,91411.0,0.00711213]
[1731782265599,0.1128,91412.0,91411.0,0.00711213]
[1731782266399,0.1128,91412.0,91411.0,0.01053144]
[1731782266694,0.1128,91412.0,91411.0,0.00164084]
[1731782266897,0.1128,91412.0,91411.0,0.01053141]
[1731782270203,0.1128,91412.0,91392.0,0.19465821]
[1731782270204,0.52134128,91412.0,91392.0,0.19465821]
[1731782270392,0.52134128,91412.0,91378.0,0.45061909]
[1731782270393,0.054688,91386.0,91385.0,0.001]
[1731782270591,0.135088,91386.0,91385.0,0.00784018]
[1731782270896,0.054691,91382.0,91378.0,0.12611673]
[1731782271092,0.054691,91382.0,91379.0,0.00684102]
[1731782271292,0.00013226,91381.0,91378.0,0.12611673]
[1731782271493,0.00013226,91381.0,91379.0,0.00684102]
[1731782271801,0.05482326,91381.0,91380.0,0.00684102]
[1731782272192,0.05482326,91381.0,91380.0,0.00204]
[1731782275108,0.05482326,91381.0,91380.0,0.0088812]
[1731782275497,0.10930839,91381.0,91380.0,0.0088812]
[1731782275900,0.10930839,91381.0,91380.0,0.09167968]
[1731782275901,0.00013226,91381.0,91380.0,0.09167968]
[1731782276099,0.00013226,91381.0,91380.0,0.14637068]
[1731782276303,0.0804,91395.0,91380.0,0.10057189]
[1731782276619,0.0804,91397.0,91389.0,0.054686]
[1731782276819,0.0804,91397.0,91390.0,0.00683996]
[1731782277013,0.0804,91397.0,91391.0,0.00683996]
[1731782277228,0.0001198,91396.0,91392.0,0.00683996]
[1731782277515,0.0001198,91396.0,91393.0,0.00683987]
[1731782277722,0.0001198,91396.0,91394.0,0.00683987]
[1731782277911,0.0001198,91396.0,91395.0,0.00683987]
[1731782278213,0.0001198,91396.0,91395.0,0.00887987]
[1731782278621,0.0001198,91396.0,91395.0,0.00204]
[1731782278819,0.0001198,91396.0,91395.0,0.00887976]
[1731782279622,0.0548018,91396.0,91395.0,0.00887976]
[1731782280123,0.07669111,91396.0,91395.0,0.01435194]
[1731782282210,0.07669111,91396.0,91395.0,0.01777198]
[1731782282607,0.07669111,91396.0,91395.0,0.01777218]
[1731782283619,0.02200911,91396.0,91395.0,0.01777218]
[1731782284021,0.02200911,91396.0,91395.0,0.01777195]
[1731782284613,0.02200911,91396.0,91378.0,0.0312]
[1731782284614,0.51825111,91396.0,91382.0,0.00103275]
[1731782284812,0.3608,91387.0,91371.0,0.39916]
[1731782285012,0.3608,91387.0,91376.0,0.08279848]
[1731782285211,0.08076,91386.0,91384.0,0.054689]
[1731782285420,0.3608,91387.0,91386.0,0.054688]
[1731782285622,0.08076,91394.0,91392.0,0.054684]
[1731782286014,0.08076,91394.0,91392.0,0.105024]
[1731782286722,0.08076,91394.0,91392.0,0.05034]
[1731782287515,0.054684,91393.0,91392.0,0.05034]
[1731782288325,0.08076,91394.0,91392.0,0.05034]
[1731782288624,0.08076,91394.0,91392.0,0.105024]
[1731782288927,0.054684,91393.0,91392.0,0.05034]
[1731782289725,0.054684,91393.0,91392.0,0.05137393]
[1731782290023,0.054684,91393.0,91392.0,0.05034]
[1731782290426,0.02200911,91396.0,91394.0,0.054683]
[1731782290626,0.02200911,91396.0,91394.0,0.105023]
[1731782290821,0.07669111,91396.0,91394.0,0.05034]
[1731782292633,0.07669111,91396.0,91395.0,0.00683973]
[1731782292832,0.07669111,91396.0,91395.0,0.05717973]
[1731782293129,0.07669111,91396.0,91395.0,0.05821394]
[1731782293526,0.07669111,91396.0,91395.0,0.05717973]
[1731782294631,0.07669111,91396.0,91395.0,0.06265164]
[1731782294931,0.07669111,91396.0,91395.0,0.06368594]
[1731782295525,0.07669111,91396.0,91395.0,0.06265164]
[1731782296533,0.02200911,91396.0,91395.0,0.06607162]
[1731782298130,0.02200911,91396.0,91395.0,0.12075362]
[1731782298630,0.0001198,91396.0,91395.0,0.12075362]
[1731782298938,0.054674,91410.0,91405.0,0.054676]
[1731782299239,0.05427882,91409.0,91408.0,0.054675]
[1731782299433,0.054674,91410.0,91408.0,0.26512848]
[1731782299736,0.0016416,91415.0,91413.0,0.054671]
[1731782300039,8.107e-05,91414.0,91413.0,0.054671]
[1731782300539,8.107e-05,91414.0,91413.0,0.08065676]
[1731782300738,8.107e-05,91414.0,91413.0,0.28084922]
[1731782300929,8.107e-05,91414.0,91413.0,0.08612736]
[1731782301324,8.107e-05,91414.0,91413.0,0.28066054]
[1731782302027,8.107e-05,91414.0,91413.0,0.09501665]
[1731782302231,8.107e-05,91414.0,91413.0,0.35421693]
[1731782302433,8.107e-05,91414.0,91413.0,0.09501665]
[1731782303039,8.107e-05,91414.0,91413.0,0.07928826]
[1731782303242,8.107e-05,91414.0,91413.0,0.33840484]
[1731782303537,8.107e-05,91414.0,91413.0,0.33840228]
[1731782304127,8.107e-05,91414.0,91413.0,0.0792857]
[1731782304324,8.107e-05,91414.0,91413.0,0.33837339]
[1731782304634,8.107e-05,91414.0,91413.0,0.38871339]
[1731782304834,8.107e-05,91414.0,91413.0,0.1296257]
[1731782306832,8.107e-05,91414.0,91413.0,0.11389988]
[1731782307034,8.107e-05,91414.0,91413.0,0.12962636]
[1731782307942,8.107e-05,91414.0,91413.0,0.13988264]
[1731782309139,0.24062194,91425.0,91413.0,0.13988264]
[1731782309140,0.24062194,91425.0,91421.0,0.054666]
[1731782309337,0.24062194,91425.0,91422.0,0.01572648]
[1731782309550,0.10982476,91425.0,91423.0,0.01572648]
[1731782309834,0.24062194,91425.0,91424.0,0.01572648]
[1731782310035,0.10995684,91425.0,91424.0,0.01572648]
[1731782310232,0.10995684,91425.0,91424.0,0.00888888]
[1731782310233,0.24075402,91425.0,91424.0,0.00888888]
[1731782310439,0.24075402,91425.0,91424.0,0.00888896]
[1731782310834,0.24075402,91425.0,91424.0,0.00888894]
[1731782311437,0.10995684,91425.0,91424.0,0.00888894]
[1731782311940,0.24059811,91425.0,91424.0,0.00888894]
[1731782312238,0.10995684,91425.0,91424.0,0.00888894]
[1731782313339,0.054672,91413.0,91407.0,0.19434739]
[1731782313540,0.054672,91413.0,91408.0,0.20323692]
[1731782313541,0.0629,91412.0,91408.0,0.20323692]
[1731782313744,0.0629,91412.0,91409.0,0.00547042]
[1731782313944,0.0629,91412.0,91406.0,0.19434739]
[1731782314136,0.0629,91412.0,91407.0,0.00888961]
[1731782314336,0.0629,91412.0,91405.0,0.3982]
[1731782314639,0.054674,91409.0,91405.0,0.05034]
[1731782315041,0.0629,91412.0,91405.0,0.054676]
[1731782315538,0.117572,91412.0,91405.0,0.054676]
[1731782316535,0.0315,91411.0,91399.0,0.0010324]
[1731782316733,0.054676,91406.0,91400.0,0.01914895]
[1731782316943,0.054676,91406.0,91399.0,0.10502]
[1731782316944,0.054676,91406.0,91399.0,0.05468]
[1731782317730,0.054676,91406.0,91396.0,0.19434739]
[1731782317731,0.3608,91405.0,91396.0,0.19434739]
[1731782317930,0.0804,91404.0,91390.0,0.19434739]
[1731782318136,0.0804,91404.0,91391.0,0.19434739]
[1731782318339,0.0804,91404.0,91391.0,0.05034]
[1731782319338,0.054681,91398.0,91391.0,0.105025]
[1731782321054,0.3608,91399.0,91391.0,0.05034]
[1731782321346,0.0804,91398.0,91391.0,0.05034]
[1731782321543,0.0804,91398.0,91394.0,0.054683]
[1731782321852,0.0804,91398.0,91394.0,0.105023]
[1731782323449,0.0804,91398.0,91395.0,0.00547173]
[1731782323643,0.0804,91398.0,91396.0,0.00547173]
[1731782323839,0.0804,91398.0,91397.0,0.00547173]
[1731782324152,0.13436685,91398.0,91397.0,0.00547173]
[1731782325445,0.13436685,91398.0,91397.0,0.00889156]
[1731782326646,0.15625344,91398.0,91397.0,0.00889156]
[1731782327038,0.15625344,91398.0,91397.0,0.00341983]
[1731782327240,0.15625344,91398.0,91397.0,0.00889201]
[1731782327553,0.15625344,91398.0,91397.0,0.00341983]
[1731782327745,0.15625344,91398.0,91395.0,0.05034]
[1731782327746,0.054681,91397.0,91395.0,0.05034]
[1731782328053,0.382921,91397.0,91395.0,0.05034]
[1731782328346,0.4590126,91396.0,91395.0,0.05034]
[1731782328651,0.054691,91381.0,91380.0,0.00164128]
[1731782328847,0.054691,91381.0,91380.0,0.00711425]
[1731782328848,0.495891,91381.0,91380.0,0.00711425]
[1731782330353,0.495891,91381.0,91380.0,0.06183425]
[1731782331551,0.135091,91381.0,91380.0,0.06183425]
[1731782332051,0.3608,91383.0,91380.0,0.06183425]
[1731782332052,0.3608,91383.0,91380.0,0.14463273]
[1731782332251,0.42666001,91394.0,91382.0,0.05469]
[1731782332444,0.08044,91393.0,91386.0,0.054687]
[1731782332751,0.08044,91393.0,91387.0,0.06015989]
[1731782333049,0.08044,91392.0,91389.0,0.054686]
[1731782333351,0.08044,91392.0,91390.0,0.06015789]
[1731782333557,0.08044,91392.0,91391.0,0.00547289]
[1731782333752,0.08044,91392.0,91391.0,0.06019289]
[1731782334643,0.0051,91401.0,91392.0,0.054684]
[1731782334841,0.0269848,91407.0,91406.0,0.054676]
[1731782335043,0.0218848,91407.0,91406.0,0.06014889]
[1731782335245,0.0635,91418.0,91411.0,0.054673]
[1731782335443,0.11852582,91418.0,91415.0,0.05467]
[1731782335645,0.11852582,91418.0,91409.0,0.08279848]
[1731782335646,0.00164129,91423.0,91416.0,0.00547289]
[1731782335850,0.00164129,91423.0,91420.0,0.054667]
[1731782336054,0.054666,91422.0,91420.0,0.054667]
[1731782336351,0.135106,91422.0,91420.0,0.054667]
[1731782336552,0.135106,91422.0,91421.0,0.00547034]
[1731782336747,0.08044,91422.0,91420.0,0.054667]
[1731782336949,0.08044,91422.0,91421.0,0.00547033]
[1731782337344,0.08044,91422.0,91409.0,0.08279848]
[1731782337655,0.08044,91422.0,91415.0,0.05467]
[1731782337656,0.135107,91422.0,91415.0,0.05467]
[1731782337857,0.135107,91422.0,91416.0,0.0054705]
[1731782338155,0.08044,91422.0,91417.0,0.00547052]
[1731782338353,0.054668,91420.0,91418.0,0.00547052]
[1731782338547,0.054668,91420.0,91415.0,0.05467]
[1731782338749,0.054668,91420.0,91416.0,0.00547064]
[1731782339061,0.054668,91420.0,91415.0,0.05467]
[1731782339549,0.054668,91420.0,91401.0,0.11329848]
[1731782339550,0.0804,91421.0,91401.0,0.11329848]
[1731782339762,0.054669,91418.0,91402.0,0.0123089]
[1731782339942,0.054669,91418.0,91410.0,0.054673]
[1731782340144,0.0804,91421.0,91411.0,0.00341914]